bitfinex/quotes_SOLUSD_20241229
["timestamp","ask_amount","ask_price","bid_price","bid_amount"]
[1735487315115,10.11693217,195.2,195.16,20.0]
[1735487315508,10.11693217,195.21,195.16,20.0]
[1735487316032,10.11693217,195.21,195.14,20.23386517]
[1735487316329,1.6297,195.25,195.14,20.23386517]
[1735487316529,10.11693217,195.21,195.14,20.23386517]
[1735487316726,6.2002,195.28,195.15,10.11693217]
[1735487316902,6.2002,195.28,195.18,20.0]
[1735487317106,10.11693217,195.25,195.18,30.11693217]
[1735487319213,10.11693217,195.26,195.19,10.11693217]
[1735487322141,10.11693217,195.27,195.19,10.11693217]
[1735487323917,6.2002,195.28,195.19,10.11693217]
[1735487324216,10.11693217,195.27,195.19,10.11693217]
[1735487324413,1.6297,195.3,195.21,10.11693217]
[1735487324656,10.11693217,195.29,195.22,10.11693217]
[1735487324840,11.74663217,195.3,195.23,10.11693217]
[1735487325155,10.11693217,195.3,195.23,10.11693217]
[1735487325448,10.11693217,195.31,195.24,10.11693217]
[1735487325867,10.11693217,195.31,195.25,10.11693217]
[1735487326450,1.5267,195.34,195.26,30.11693217]
[1735487326626,10.11693217,195.33,195.26,30.11693217]
[1735487327273,10.11693217,195.32,195.25,10.11693217]
[1735487327778,10.11693217,195.31,195.27,20.0]
[1735487328395,10.11693217,195.32,195.25,30.11693217]
[1735487329978,10.11693217,195.32,195.25,20.0]
[1735487330184,10.11693217,195.32,195.25,30.11693217]
[1735487331881,10.11693217,195.31,195.22,2.27038889]
[1735487332057,10.11693217,195.3,195.23,10.11693217]
[1735487333179,10.11693217,195.31,195.24,10.11693217]
[1735487334388,10.11693217,195.32,195.25,10.11693217]
[1735487334563,10.11693217,195.33,195.26,30.11693217]
[1735487334767,10.11693217,195.34,195.26,30.11693217]
[1735487336078,10.11693217,195.33,195.28,20.0]
[1735487336588,10.11693217,195.34,195.28,20.0]
[1735487338963,10.11693217,195.35,195.28,30.11693217]
[1735487341197,10.11693217,195.36,195.29,10.11693217]
[1735487341799,1.5662,195.39,195.3,20.0]
[1735487342001,1.5662,195.39,195.32,10.11693217]
[1735487342178,6.0545,195.43,195.33,10.11693217]
[1735487342382,10.11693217,195.4,195.33,10.11693217]
[1735487342998,10.11693217,195.41,195.34,10.11693217]
[1735487343314,10.11693217,195.4,195.33,10.11693217]
[1735487344183,10.11693217,195.39,195.32,30.11693217]
[1735487345804,10.11693217,195.39,195.33,10.116932]
[1735487346296,10.11693217,195.37,195.33,10.116932]
[1735487346804,10.11693217,195.38,195.33,10.116932]
[1735487350982,10.11693217,195.39,195.33,10.116932]
[1735487352517,10.11693217,195.41,195.34,10.11693217]
[1735487352831,6.0545,195.43,195.37,10.11693217]
[1735487353126,6.2898,195.48,195.37,10.11693217]
[1735487353332,10.11693217,195.44,195.37,10.11693217]
[1735487354014,10.11693217,195.45,195.38,10.11693217]
[1735487355616,10.11693217,195.44,195.37,30.11693217]
[1735487356602,10.11693217,195.45,195.38,10.11693217]
[1735487357715,6.2898,195.48,195.39,10.11693217]
[1735487357921,10.11693217,195.48,195.41,10.11693217]
[1735487358236,1.532,195.5,195.42,10.11693217]
[1735487358385,10.11693217,195.49,195.42,10.11693217]
[1735487359215,1.532,195.5,195.43,10.11693217]
[1735487359392,6.6118,195.53,195.43,10.11693217]
[1735487359591,10.11693217,195.51,195.44,10.11693217]
[1735487359811,10.11693217,195.49,195.43,30.11693217]
[1735487360031,10.11693217,195.49,195.43,20.0]
[1735487360224,10.11693217,195.48,195.41,30.11693217]
[1735487360523,10.11693217,195.48,195.42,10.11693217]
[1735487362616,10.11693217,195.46,195.34,30.0]
[1735487362787,10.11693217,195.45,195.37,10.11693217]
[1735487362995,10.11693217,195.43,195.33,18.69383824]
[1735487363195,1.5515,195.47,195.38,10.11693217]
[1735487363495,10.11693217,195.47,195.4,10.11693217]
[1735487363699,1.5515,195.51,195.41,10.11693217]
[1735487363700,10.11693217,195.48,195.41,10.11693217]
[1735487364807,1.5515,195.51,195.45,20.0]
[1735487365014,11.66843217,195.51,195.44,10.11693217]
[1735487365231,20.0,195.57,195.46,10.11693217]
[1735487365419,10.11693217,195.53,195.46,10.11693217]
[1735487365633,10.11693217,195.53,195.47,10.11693217]
[1735487366741,10.11693217,195.54,195.47,10.11693217]
[1735487367046,10.11693217,195.55,195.48,30.60989117]
[1735487368245,10.11693217,195.56,195.5,10.11693217]
[1735487369016,7.9605,195.6,195.51,10.11693217]
[1735487369238,10.11693217,195.59,195.52,10.11693217]
[1735487369621,7.9605,195.6,195.52,10.11693217]
[1735487369943,10.11693217,195.58,195.51,30.11693217]
[1735487370625,10.11693217,195.58,195.52,10.11693217]
[1735487372952,10.11693217,195.55,195.51,20.0]
[1735487373243,7.9605,195.6,195.51,20.0]
[1735487373440,7.61693217,195.56,195.51,20.0]
[1735487373630,10.11693217,195.55,195.51,20.0]
[1735487373939,10.11693217,195.55,195.48,20.492959]
[1735487374130,10.11693217,195.53,195.48,20.492959]
[1735487374641,10.11693217,195.54,195.48,20.492959]
[1735487379047,10.11693217,195.55,195.48,20.492959]
[1735487379842,10.11693217,195.54,195.48,20.492959]
[1735487380851,10.11693217,195.53,195.48,20.492959]
[1735487381045,10.11693217,195.54,195.48,20.492959]
[1735487383633,7.9605,195.6,195.48,30.60989117]
[1735487383970,10.11693217,195.59,195.51,30.11693217]
[1735487384328,10.11693217,195.59,195.52,10.11693217]
[1735487386168,10.11693217,195.58,195.51,30.11693217]
[1735487387163,10.11693217,195.59,195.52,10.11693217]
[1735487388346,8.1965,195.65,195.54,10.11693217]
[1735487388665,10.11693217,195.62,195.56,10.11693217]
[1735487389743,10.11693217,195.61,195.55,20.0]
[1735487389936,10.11693217,195.61,195.49,20.9579]
[1735487390171,10.11693217,195.6,195.53,10.11693217]
[1735487390755,10.11693217,195.61,195.54,10.11693217]
[1735487391247,10.11693217,195.62,195.55,10.11693217]
[1735487391568,10.11693217,195.61,195.54,10.11693217]
[1735487391740,10.11693217,195.6,195.53,20.0]
[1735487391942,10.11693217,195.59,195.53,20.0]
[1735487392466,10.11693217,195.6,195.53,30.11693217]
[1735487393376,10.11693217,195.59,195.52,30.11693217]
[1735487394248,10.11693217,195.6,195.53,10.11693217]
[1735487394453,10.11693217,195.62,195.55,10.11693217]
[1735487396345,10.11693217,195.62,195.54,10.11693217]
[1735487396548,10.11693217,195.62,195.55,10.11693217]
[1735487397060,10.11693217,195.62,195.54,10.11693217]
[1735487400296,10.11693217,195.62,195.53,20.0]
[1735487400499,10.11693217,195.6,195.53,30.11693217]
[1735487401201,10.11693217,195.61,195.54,10.11693217]
[1735487401699,10.11693217,195.62,195.55,10.11693217]
[1735487402010,10.11693217,195.63,195.55,10.11693217]
[1735487403871,10.11693217,195.63,195.56,10.11693217]
[1735487404070,7.7384,195.7,195.58,10.11693217]
[1735487404271,10.11693217,195.66,195.58,10.11693217]
[1735487404495,7.7384,195.7,195.6,10.11693217]
[1735487404691,7.7384,195.7,195.61,10.11693217]
[1735487404999,10.11693217,195.69,195.61,10.11693217]
[1735487408400,10.11693217,195.69,195.62,10.11693217]
[1735487408706,8.0623,195.75,195.62,10.11693217]
[1735487409007,10.11693217,195.7,195.63,10.11693217]
[1735487409185,10.11693217,195.69,195.62,10.11693217]
[1735487409387,10.11693217,195.68,195.62,10.11693217]
[1735487409792,8.0623,195.75,195.62,10.11693217]
[1735487409998,10.11693217,195.69,195.62,10.11693217]
[1735487410710,8.0623,195.75,195.58,23.776884]
[1735487410711,10.11693217,195.68,195.61,20.0]
[1735487410886,8.0623,195.75,195.65,20.0]
[1735487411088,11.72743217,195.75,195.68,10.11693217]
[1735487411276,10.11693217,195.75,195.69,10.11693217]
[1735487411607,10.11693217,195.75,195.68,10.11693217]
[1735487412033,10.11693217,195.74,195.68,10.11693217]
[1735487412183,10.11693217,195.71,195.66,20.0]
[1735487412376,10.11693217,195.69,195.62,10.11693217]
[1735487412597,10.11693217,195.66,195.58,1.653]
[1735487412781,6.4518,195.71,195.62,10.11693217]
[1735487412982,6.4518,195.71,195.58,1.653]
[1735487413182,6.4518,195.71,195.6,10.11693217]
[1735487413390,10.11693217,195.67,195.6,10.11693217]
[1735487413979,10.11693217,195.68,195.61,10.11693217]
[1735487414574,10.11693217,195.67,195.6,10.11693217]
[1735487415119,1.6105,195.73,195.63,10.11693217]
[1735487415329,10.11693217,195.72,195.65,10.11693217]
[1735487417195,6.4518,195.76,195.66,10.11693217]
[1735487417397,10.11693217,195.73,195.69,20.0]
[1735487417709,10.11693217,195.74,195.69,20.0]
[1735487417914,10.11693217,195.73,195.69,20.0]
[1735487418609,10.11693217,195.7,195.61,6.0056]
[1735487418813,10.11693217,195.69,195.61,10.11693217]
[1735487419017,10.11693217,195.68,195.61,10.11693217]
[1735487419196,10.11693217,195.69,195.61,10.11693217]
[1735487419514,10.11693217,195.7,195.63,10.11693217]
[1735487419716,10.11693217,195.69,195.62,10.11693217]
[1735487420015,10.11693217,195.7,195.63,10.11693217]
[1735487420214,6.4518,195.76,195.65,10.11693217]
[1735487420419,16.56873217,195.76,195.69,10.11693217]
[1735487421094,6.4518,195.76,195.69,10.11693217]
[1735487421292,1.6105,195.78,195.7,10.11693217]
[1735487421517,11.72743217,195.78,195.71,10.11693217]
[1735487422197,1.6105,195.78,195.72,10.11693217]
[1735487422398,6.4518,195.82,195.73,10.11693217]
[1735487422598,10.11693217,195.81,195.74,10.11693217]
[1735487422806,10.11693217,195.78,195.71,10.11693217]
[1735487423212,6.4518,195.82,195.72,10.11693217]
[1735487423415,10.11693217,195.79,195.72,10.11693217]
[1735487423915,10.11693217,195.78,195.71,10.11693217]
[1735487424214,15.7071362,195.78,195.71,15.7071362]
[1735487424517,15.7071362,195.82,195.75,15.7071362]
[1735487425021,15.7071362,195.81,195.74,15.7071362]
[1735487425212,15.7071362,195.82,195.75,15.7071362]
[1735487425905,15.7071362,195.82,195.72,25.324984]
[1735487425906,15.7071362,195.81,195.73,15.7071362]
[1735487427022,15.7071362,195.81,195.74,15.7071362]
[1735487427527,15.7071362,195.81,195.73,15.7071362]
[1735487430349,15.7071362,195.81,195.74,15.7071362]
[1735487430948,15.7071362,195.8,195.73,15.7071362]
[1735487432451,0.08559483,195.85,195.78,15.7071362]
[1735487432628,0.08559483,195.85,195.79,15.7071362]
[1735487432948,15.79273103,195.85,195.78,15.7071362]
[1735487433165,15.7071362,195.84,195.77,15.7071362]
[1735487433455,15.79273103,195.85,195.78,15.7071362]
[1735487433620,15.7071362,195.83,195.76,15.7071362]
[1735487434854,15.7071362,195.84,195.77,15.7071362]
[1735487436826,15.7071362,195.82,195.75,35.7071362]
[1735487437147,15.7071362,195.83,195.76,15.7071362]
[1735487437346,15.7071362,195.83,195.76,14.7071362]
[1735487437858,15.7071362,195.84,195.77,15.7071362]
[1735487438335,15.79273103,195.85,195.78,15.7071362]
[1735487438526,15.79273103,195.85,195.77,15.7071362]
[1735487439618,15.79273103,195.85,195.79,15.7071362]
[1735487439619,0.08559483,195.85,195.79,15.7071362]
[1735487440951,0.08559483,195.85,195.83,20.0]
[1735487441169,0.08559483,195.85,195.81,15.7071362]
[1735487441324,0.08559483,195.85,195.82,15.7071362]
[1735487442238,0.08559483,195.85,195.84,35.7071362]
[1735487442438,0.08559483,195.85,195.84,20.0]
[1735487442836,0.08559483,195.85,195.82,35.7071362]
[1735487443650,15.79273103,195.85,195.78,15.7071362]
[1735487444033,0.08559483,195.85,195.82,20.0]
[1735487444852,15.79273103,195.85,195.78,15.7071362]
[1735487445370,15.79273103,195.85,195.81,20.0]
[1735487446558,0.08559483,195.85,195.79,15.7071362]
[1735487446762,0.08559483,195.85,195.8,15.7071362]
[1735487448037,0.08559483,195.85,195.84,61.1273202]
[1735487448256,0.08559483,195.85,195.84,74.65833429]
[1735487449055,15.7071362,195.98,195.9,20.0]
[1735487449233,15.7071362,195.98,195.91,15.7071362]
[1735487449432,23.6063362,195.99,195.92,15.7071362]
[1735487449852,15.7071362,195.98,195.91,15.7071362]
[1735487450032,15.7071362,195.97,195.9,15.7071362]
[1735487453551,15.7071362,195.98,195.91,15.7071362]
[1735487455365,7.8992,195.99,195.88,15.707136]
[1735487455558,15.7071362,195.96,195.89,15.7071362]
[1735487458859,15.7071362,195.95,195.88,35.7071362]
[1735487460366,10.03532081,195.95,195.88,30.03532081]
[1735487460574,10.03532081,195.95,195.88,20.0]
[1735487460748,10.03532081,195.95,195.88,10.03532081]
[1735487461447,10.03532081,195.96,195.89,10.03532081]
[1735487463072,7.8992,195.99,195.85,20.0]
[1735487463073,10.03532081,195.95,195.88,30.03532081]
[1735487465746,10.03532081,195.96,195.88,30.03532081]
[1735487466474,10.03532081,195.96,195.89,10.03532081]
[1735487466663,10.03532081,195.98,195.91,10.03532081]
[1735487467575,17.93452081,195.99,195.92,10.03532081]
[1735487467959,10.03532081,196.0,195.93,10.03532081]
[1735487470165,10.03532081,195.99,195.92,10.03532081]
[1735487471674,7.8956,196.04,195.92,10.03532081]
[1735487471853,10.03532081,196.0,195.93,10.03532081]
[1735487472352,10.03532081,196.01,195.94,10.03532081]
[1735487472548,7.8956,196.04,195.9,36.4723]
[1735487472753,10.03532081,196.02,195.95,10.03532081]
[1735487473178,10.03532081,196.0,195.93,20.0]
[1735487473580,10.03532081,196.0,195.93,30.03532081]
[1735487476408,10.03532081,196.0,195.94,10.03532081]
[1735487476708,7.8956,196.04,195.94,10.03532081]
[1735487476867,10.03532081,196.01,195.94,10.03532081]
[1735487478498,10.03532081,195.99,195.93,20.0]
[1735487479081,10.03532081,196.0,195.93,30.03532081]
[1735487480508,10.03532081,195.97,195.87,1.5449]
[1735487480677,10.03532081,195.95,195.88,10.03532081]
[1735487480880,10.03532081,195.94,195.87,11.58022081]
[1735487482709,10.03532081,195.94,195.87,10.03532081]
[1735487484831,6.0407,195.96,195.89,10.03532081]
[1735487485001,16.07602081,195.96,195.89,10.03532081]
[1735487486525,1.5102,195.97,195.91,10.03532081]
[1735487486717,11.54552081,195.97,195.9,10.03532081]
[1735487487538,11.54552081,195.97,195.89,10.03532081]
[1735487487837,10.03532081,195.96,195.89,10.03532081]
[1735487491328,10.03532081,195.94,195.85,20.0]
[1735487491525,10.03532081,195.94,195.86,10.03532081]
[1735487492038,10.03532081,195.94,195.87,10.03532081]
[1735487492943,10.03532081,195.93,195.86,10.03532081]
[1735487493111,10.03532081,195.94,195.86,10.03532081]
[1735487493310,10.03532081,195.94,195.87,10.03532081]
[1735487493832,10.03532081,195.91,195.85,20.0]
[1735487494007,10.03532081,195.9,195.85,20.0]
[1735487494634,10.03532081,195.91,195.85,20.0]
[1735487494961,10.03532081,195.91,195.84,10.03532081]
[1735487496253,10.03532081,195.9,195.83,10.03532081]
[1735487497653,10.03532081,195.9,195.84,10.03532081]
[1735487498656,10.03532081,195.9,195.83,10.03532081]
[1735487499931,10.03532081,195.89,195.83,10.03532081]
[1735487500662,10.03532081,195.89,195.82,10.03532081]
[1735487501452,10.03532081,195.89,195.81,10.03532]
[1735487501631,10.03532081,195.89,195.82,10.03532081]
[1735487502117,10.03532081,195.88,195.82,10.03532081]
[1735487502430,10.03532081,195.86,195.8,10.03532081]
[1735487502930,10.03532081,195.87,195.8,10.03532081]
[1735487504318,10.03532081,195.88,195.81,10.03532081]
[1735487504633,10.03532081,195.88,195.82,10.03532081]
[1735487505440,6.0407,195.94,195.83,10.03532081]
[1735487505743,10.03532081,195.9,195.83,10.03532081]
[1735487506536,10.03532081,195.9,195.79,10.035321]
[1735487506537,10.03532081,195.89,195.82,10.03532081]
[1735487507643,10.03532081,195.83,195.79,10.035321]
[1735487507934,10.03532081,195.82,195.78,1.5113]
[1735487508148,10.03532081,195.83,195.78,1.5113]
[1735487508666,10.03532081,195.83,195.77,10.035321]
[1735487508850,10.03532081,195.84,195.77,20.07064181]
[1735487509225,10.03532081,195.85,195.79,10.03532081]
[1735487512659,1.6378,195.89,195.8,10.03532081]
[1735487512959,16.53242081,195.91,195.84,10.03532081]
[1735487513756,16.53242081,195.91,195.85,10.03532081]
[1735487513929,16.53242081,195.91,195.84,10.03532081]
[1735487514250,10.03532081,195.9,195.84,10.03532081]
[1735487514635,6.4971,195.91,195.84,10.03532081]
[1735487514839,10.03532081,195.9,195.84,10.03532081]
[1735487515053,10.03532081,195.9,195.83,20.07064181]
[1735487515545,10.03532081,195.89,195.83,10.035321]
[1735487515757,10.03532081,195.88,195.83,10.035321]
[1735487515962,10.03532081,195.88,195.81,30.03532081]
[1735487516180,10.03532081,195.88,195.81,40.07064181]
[1735487517772,10.03532081,195.88,195.81,20.07064181]
[1735487518161,10.03532081,195.87,195.81,20.07064181]
[1735487519253,10.03532081,195.87,195.81,10.035321]
[1735487519440,10.03532081,195.86,195.79,10.03532081]
[1735487519835,10.03532081,195.86,195.81,10.035321]
[1735487520971,10.03532081,195.87,195.81,10.035321]
[1735487521293,10.03532081,195.88,195.81,20.07064181]
[1735487523298,10.03532081,195.87,195.81,10.035321]
[1735487523788,10.03532081,195.86,195.81,10.035321]
[1735487524098,10.03532081,195.84,195.81,10.035321]
[1735487524268,10.03532081,195.85,195.81,10.035321]
[1735487525879,10.03532081,195.86,195.81,10.035321]
[1735487526377,10.03532081,195.88,195.81,20.07064181]
[1735487526591,6.4971,195.91,195.84,10.03532081]
[1735487526761,10.03532081,195.91,195.84,10.03532081]
[1735487527503,10.03532081,195.88,195.82,10.03532081]
[1735487527800,10.03532081,195.87,195.81,20.07064181]
[1735487527975,10.03532081,195.88,195.81,20.07064181]
[1735487528294,10.03532081,195.87,195.81,10.035321]
[1735487528480,10.03532081,195.88,195.81,20.07064181]
[1735487530171,1.6378,195.94,195.82,10.03532081]
[1735487530372,10.03532081,195.89,195.82,10.03532081]
[1735487530603,10.03532081,195.88,195.82,10.03532081]
[1735487530804,10.03532081,195.87,195.81,10.035321]
[1735487530978,10.03532081,195.85,195.81,10.035321]
[1735487531194,1.6378,195.94,195.81,10.035321]
[1735487531386,10.03532081,195.87,195.81,10.035321]
[1735487531693,1.6378,195.94,195.81,20.07064181]
[1735487531996,10.03532081,195.89,195.82,10.03532081]
[1735487532295,10.03532081,195.88,195.81,20.07064181]
[1735487533404,1.6378,195.94,195.81,20.07064181]
[1735487533610,10.03532081,195.87,195.81,10.035321]
[1735487533973,10.03532081,195.88,195.81,10.035321]
[1735487540509,10.03532081,195.87,195.81,10.035321]
[1735487540800,10.03532081,195.88,195.81,10.035321]
[1735487543102,10.03532081,195.88,195.81,20.07064181]
[1735487543597,10.03532081,195.89,195.82,12.48395183]
[1735487543787,10.03532081,195.9,195.83,10.03532081]
[1735487543987,10.03532081,195.9,195.83,12.48395183]
[1735487544503,10.03532081,195.9,195.83,10.03532081]
[1735487545320,10.03532081,195.91,195.84,10.03532081]
[1735487545480,10.03532081,195.93,195.86,10.03532081]
[1735487545805,10.03532081,195.92,195.86,10.03532081]
[1735487546417,10.03532081,195.92,195.85,10.03532081]
[1735487548812,10.03532081,195.91,195.85,10.03532081]
[1735487549723,10.03532081,195.91,195.83,1.6322]
[1735487549922,10.03532081,195.88,195.82,10.03532081]
[1735487550349,10.03532081,195.89,195.82,10.03532081]
[1735487550646,10.03532081,195.89,195.83,2.44788818]
[1735487550945,10.03532081,195.88,195.83,2.44788818]
[1735487552109,10.03532081,195.88,195.82,12.48320899]
[1735487552431,10.03532081,195.88,195.82,10.03532081]
[1735487553035,10.03532081,195.89,195.82,10.03532081]
[1735487553607,10.03532081,195.92,195.85,10.03532081]
[1735487554226,10.03532081,195.92,195.86,10.03532081]
[1735487554439,1.6378,195.94,195.86,10.03532081]
[1735487554632,10.03532081,195.92,195.86,10.03532081]
[1735487555855,10.03532081,195.92,195.85,10.03532081]
[1735487556954,10.03532081,195.91,195.84,30.03532081]
[1735487557747,10.03532081,195.92,195.85,10.03532081]
[1735487558041,10.03532081,195.92,195.86,10.03532081]
[1735487558340,10.03532081,195.92,195.85,30.03532081]
[1735487560140,10.03532081,195.93,195.86,10.03532081]
[1735487560616,10.03532081,195.93,195.87,10.03532081]
[1735487561843,10.03532081,195.93,195.88,10.035321]
[1735487562246,11.67312081,195.94,195.88,10.035321]
[1735487563748,10.03532081,195.94,195.88,10.035321]
[1735487564343,10.03532081,195.95,195.88,20.07064181]
[1735487566247,10.03532081,195.96,195.89,10.03532081]
[1735487566449,10.03532081,195.97,195.9,10.03532081]
[1735487566887,10.03532081,195.97,195.91,10.03532081]
[1735487567666,10.03532081,195.96,195.88,10.80076946]
[1735487567874,10.03532081,195.96,195.89,10.03532081]
[1735487568083,10.03532081,195.96,195.88,10.035321]
[1735487568251,10.03532081,195.96,195.89,10.03532081]
[1735487568691,1.5062,195.99,195.88,10.035321]
[1735487568856,10.03532081,195.97,195.91,10.03532081]
[1735487569472,6.5222,196.01,195.91,10.03532081]
[1735487569685,10.03532081,196.0,195.93,10.03532081]
[1735487569981,10.03532081,196.0,195.94,10.03532081]
[1735487570187,10.03532081,196.02,195.95,10.03532081]
[1735487570354,10.03532081,196.0,195.94,20.0]
[1735487570956,10.03532081,196.0,195.94,30.03532081]
[1735487571868,10.03532081,196.01,195.95,10.03532081]
[1735487572090,10.03532081,196.02,195.95,10.03532081]
[1735487573995,10.03532081,196.02,195.96,10.03532081]
[1735487575060,10.03532081,196.02,195.95,10.03532081]
[1735487580403,10.03532081,196.02,195.96,10.03532081]
[1735487581296,10.03532081,196.01,195.93,20.0]
[1735487581470,10.03532081,196.0,195.93,30.03532081]
[1735487584979,10.03532081,196.01,195.94,10.03532081]
[1735487587406,10.03532081,195.97,195.88,10.035321]
[1735487587585,10.03532081,195.95,195.89,10.03532081]
[1735487588295,10.03532081,195.95,195.87,1.6203]
[1735487588512,10.03532081,195.95,195.88,10.03532081]
[1735487589005,10.03532081,195.94,195.88,10.03532081]
[1735487590301,10.03532081,195.94,195.85,20.448971]
[1735487590504,1.5248,195.96,195.86,10.03532081]
[1735487590505,10.03532081,195.92,195.86,10.03532081]
[1735487591904,10.03532081,195.93,195.86,10.03532081]
[1735487592406,10.03532081,195.91,195.82,5.124]
[1735487592707,10.03532081,195.89,195.81,5.124]
[1735487592879,10.03532081,195.89,195.83,10.03532081]
[1735487593480,10.03532081,195.9,195.83,10.03532081]
[1735487593707,16.16052081,195.91,195.85,10.03532081]
[1735487595609,10.03532081,195.9,195.83,10.03532081]
[1735487595913,10.03532081,195.89,195.83,10.03532081]
[1735487597114,10.03532081,195.89,195.82,10.03532081]
[1735487597413,10.03532081,195.9,195.83,10.03532081]
[1735487600713,10.03532081,195.98,195.89,10.03532081]
[1735487600891,10.03532081,195.97,195.9,10.03532081]
[1735487601200,10.03532081,195.96,195.89,10.03532081]
[1735487602917,6.1252,196.0,195.89,10.03532081]
[1735487602918,10.03532081,195.97,195.89,10.03532081]
[1735487603514,10.03532081,195.96,195.89,10.03532081]
[1735487604397,10.03532081,195.96,195.84,30.76576728]
[1735487604605,10.03532081,195.95,195.87,20.0]
[1735487604802,10.03532081,195.95,195.88,10.03532081]
[1735487605916,10.03532081,195.96,195.89,10.03532081]
[1735487606335,10.03532081,195.96,195.87,20.0]
[1735487606501,10.03532081,195.96,195.9,10.03532081]
[1735487607114,10.03532081,195.97,195.9,10.03532081]
[1735487610327,3.28002573,196.0,195.9,10.03532081]
[1735487610523,10.03532081,195.97,195.9,10.03532081]
[1735487611327,10.03532081,195.97,195.89,30.03532081]
[1735487612913,10.03532081,195.97,195.9,10.03532081]
[1735487613127,10.03532081,195.99,195.91,10.03532081]
[1735487613705,1.5248,196.01,195.92,10.03532081]
[1735487613903,6.4535,196.05,195.93,10.03532081]
[1735487614125,10.03532081,196.02,195.95,10.03532081]
[1735487614317,10.03532081,196.01,195.94,10.03532081]
[1735487616336,10.03532081,196.0,195.92,20.0]
[1735487616519,6.4535,196.05,195.92,20.0]
[1735487616520,10.03532081,195.99,195.93,10.03532081]
[1735487619143,10.03532081,196.0,195.93,10.03532081]
[1735487620448,10.03532081,195.99,195.93,10.03532081]
[1735487621842,10.03532081,195.99,195.9,1.5698]
[1735487622145,10.03532081,195.96,195.89,10.03532081]
[1735487622946,10.03532081,195.97,195.9,10.03532081]
[1735487624351,10.03532081,195.98,195.91,30.03532081]
[1735487630752,10.03532081,195.98,195.91,20.0]
[1735487631436,10.03532081,195.97,195.91,20.0]
[1735487631636,10.03532081,195.96,195.89,10.03532081]
[1735487632450,10.03532081,195.96,195.9,3.7439779]
[1735487632828,1.5524,196.0,195.9,13.77929871]
[1735487633055,10.03532081,195.98,195.91,10.03532081]
[1735487633648,10.03532081,195.98,195.92,3.74245332]
[1735487634233,10.03532081,195.98,195.91,10.03532081]
[1735487635034,10.03532081,195.99,195.92,10.03532081]
[1735487636659,10.03532081,195.98,195.89,10.035321]
[1735487636954,10.03532081,195.98,195.88,6.3265]
[1735487636955,10.03532081,195.97,195.9,10.03532081]
[1735487637165,10.03532081,195.97,195.9,13.77725766]
[1735487637762,10.03532081,195.97,195.9,10.03532081]
[1735487639664,10.03532081,195.97,195.91,3.74243223]
[1735487640168,1.5524,196.0,195.91,3.74243223]
[1735487640385,10.03532081,195.97,195.9,10.03532081]
[1735487640879,10.03532081,195.96,195.88,10.035321]
[1735487641062,10.03532081,195.95,195.88,20.07064181]
[1735487641269,10.03532081,195.95,195.89,10.03532081]
[1735487641855,10.03532081,195.95,195.87,10.035321]
[1735487642052,10.03532081,195.94,195.87,10.035321]
[1735487642256,10.03532081,195.94,195.87,10.03532081]
[1735487643580,10.03532081,195.93,195.87,10.03532081]
[1735487643756,10.03532081,195.94,195.87,10.03532081]
[1735487643953,6.4596,195.99,195.89,10.03532081]
[1735487644156,6.4596,195.99,195.9,10.03532081]
[1735487644466,10.03532081,195.97,195.9,10.03532081]
[1735487647381,10.03532081,195.96,195.89,30.03532081]
[1735487648958,10.03532081,195.95,195.89,30.03532081]
[1735487649156,10.03532081,195.96,195.89,30.03532081]
[1735487649983,10.03532081,195.97,195.9,10.03532081]
[1735487650164,10.03532081,195.96,195.89,30.03532081]
[1735487652756,10.03532081,195.95,195.89,20.0]
[1735487655799,6.4596,195.99,195.86,11.759458]
[1735487655961,10.03532081,195.96,195.88,10.03532081]
[1735487656858,10.03532081,195.96,195.89,30.03532081]
[1735487662405,23.776884,196.04,195.91,10.03532081]
[1735487662707,10.03532081,196.0,195.93,10.03532081]
[1735487662901,10.03532081,195.99,195.92,10.03532081]
[1735487663259,10.03532081,195.99,195.92,30.48059481]
[1735487672786,10.03532081,195.98,195.92,30.48059481]
[1735487673111,10.03532081,195.98,195.92,20.445274]
[1735487673313,10.03532081,195.97,195.92,20.445274]
[1735487673488,10.03532081,195.97,195.91,10.03532081]
[1735487673680,10.03532081,195.97,195.91,20.445532]
[1735487673880,10.03532081,195.95,195.91,20.445532]
[1735487674191,10.03532081,195.95,195.91,20.0]
[1735487675096,10.03532081,195.95,195.88,30.48085281]
[1735487675304,10.03532081,195.95,195.88,10.03532081]
[1735487675505,10.03532081,195.94,195.88,10.03532081]
[1735487676505,10.03532081,195.95,195.88,10.03532081]
[1735487677791,10.03532081,195.95,195.89,10.03532081]
[1735487678598,10.03532081,195.96,195.9,30.03532081]
[1735487681693,10.03532081,195.96,195.9,20.0]
[1735487684115,10.03532081,195.95,195.9,20.0]
[1735487685119,10.03532081,195.95,195.89,10.03532081]
[1735487687504,10.03532081,195.96,195.9,30.03532081]